bitfinex-derivatives/quotes_BTCF0:USTF0_20230701
["timestamp","ask_amount","ask_price","bid_price","bid_amount"]
[1688181919458,0.98080467,30427.0,30426.0,0.34313822]
[1688181919858,1.29360467,30427.0,30426.0,0.34313822]
[1688181920664,0.93280467,30427.0,30426.0,0.34313822]
[1688181920869,1.29360467,30427.0,30426.0,0.34313822]
[1688181921077,1.31183436,30427.0,30426.0,0.34313822]
[1688181921261,1.29360467,30427.0,30426.0,0.34313822]
[1688181923074,1.31183436,30427.0,30426.0,0.34313822]
[1688181924675,1.29360467,30427.0,30426.0,0.34313822]
[1688181924975,1.31183436,30427.0,30426.0,0.34313822]
[1688181925177,1.29360467,30427.0,30426.0,0.34313822]
[1688181925564,1.31183436,30427.0,30426.0,0.34313822]
[1688181927073,1.29360467,30427.0,30426.0,0.34313822]
[1688181927874,1.31183436,30427.0,30426.0,0.34313822]
[1688181928076,1.11580333,30427.0,30426.0,0.34313822]
[1688181928675,1.09757364,30427.0,30426.0,0.34313822]
[1688181929777,1.09757364,30427.0,30426.0,0.32341222]
[1688181930178,1.09757364,30427.0,30426.0,0.00781222]
[1688181930770,1.11580333,30427.0,30426.0,0.00781222]
[1688181931173,1.09757364,30427.0,30426.0,0.00781222]
[1688181931675,1.14517182,30427.0,30426.0,0.00781222]
[1688181932880,0.78437182,30427.0,30426.0,0.00781222]
[1688181933078,1.14517182,30427.0,30426.0,0.00781222]
[1688181933479,1.16340151,30427.0,30426.0,0.00781222]
[1688181934172,1.14517182,30427.0,30426.0,0.00781222]
[1688181934883,1.14517182,30427.0,30426.0,0.02753922]
[1688181935387,1.4068753,30427.0,30426.0,0.02753922]
[1688181935785,1.14517182,30427.0,30426.0,0.02753922]
[1688181937487,1.4068753,30427.0,30426.0,0.02753922]
[1688181938378,1.14517182,30427.0,30426.0,0.02753922]
[1688181938786,1.12632237,30427.0,30426.0,0.04638867]
[1688181940977,0.76552237,30427.0,30426.0,0.04638867]
[1688181942281,0.76552237,30427.0,30426.0,0.02753922]
[1688181942482,0.78437182,30427.0,30426.0,0.02753922]
[1688181944494,1.14517182,30427.0,30426.0,0.02753922]
[1688181945691,0.78437182,30427.0,30426.0,0.02753922]
[1688181945986,1.14517182,30427.0,30426.0,0.02753922]
[1688181946694,1.12632237,30427.0,30426.0,0.02753922]
[1688181947491,1.14517182,30427.0,30426.0,0.02753922]
[1688181947995,1.4068753,30427.0,30426.0,0.02753922]
[1688181948380,1.14517182,30427.0,30426.0,0.02753922]
[1688181949793,1.14517182,30427.0,30426.0,0.38223922]
[1688181949991,1.12632237,30427.0,30426.0,0.38223922]
[1688181954198,0.76552237,30427.0,30426.0,0.38223922]
[1688181960201,0.76552237,30427.0,30426.0,0.40108867]
[1688181965109,0.41072237,30427.0,30426.0,0.39888867]
[1688181965498,0.41072237,30427.0,30426.0,0.38003922]
[1688181965697,0.42957182,30427.0,30426.0,0.38003922]
[1688181967605,0.65852589,30427.0,30426.0,0.38003922]
[1688181967798,0.65852589,30427.0,30426.0,0.36031222]
[1688181968508,0.42957182,30427.0,30426.0,0.36031222]
[1688181969403,0.65852589,30427.0,30426.0,0.36031222]
[1688181969800,0.42957182,30427.0,30426.0,0.36031222]
[1688181970496,0.6912753,30427.0,30426.0,0.36031222]
[1688181971000,0.6912753,30427.0,30426.0,0.38003922]
[1688181972697,1.11407173,30427.0,30424.0,0.049318]
[1688181972903,0.693325,30427.0,30426.0,0.01128078]
[1688181973105,1.19432429,30427.0,30426.0,0.00027357]
[1688181973306,1.21255398,30427.0,30426.0,0.0098796]
[1688181973507,1.52656105,30427.0,30426.0,0.0098796]
[1688181973806,1.23140343,30427.0,30426.0,0.0098796]
[1688181976207,0.87060343,30427.0,30426.0,0.0098796]
[1688181976410,1.59220343,30427.0,30426.0,0.0098796]
[1688181978008,1.52420375,30427.0,30426.0,0.0098796]
[1688181979615,1.75310279,30427.0,30426.0,0.0098796]
[1688181979805,1.03150279,30427.0,30426.0,0.0098796]
[1688181980002,1.75310279,30427.0,30426.0,0.0098796]
[1688181985415,1.23140381,30427.0,30426.0,0.00889165]
[1688181985617,1.59220381,30427.0,30426.0,0.00889165]
[1688181985821,1.59220381,30427.0,30423.0,0.02657699]
[1688181986122,0.96162448,30424.0,30423.0,0.019728]
[1688181986325,1.07690323,30424.0,30423.0,0.019728]
[1688181986917,1.03930323,30424.0,30423.0,0.019728]
[1688181987117,1.40010323,30424.0,30423.0,0.019728]
[1688181987626,1.40010323,30424.0,30422.0,0.38170819]
[1688181987819,0.48710775,30423.0,30422.0,0.38170819]
[1688181988018,0.71600423,30423.0,30422.0,0.38170819]
[1688181988715,0.69777454,30423.0,30422.0,0.38170819]
[1688181988922,1.05857454,30423.0,30422.0,0.38170819]
[1688181989126,1.07680423,30423.0,30422.0,0.38170819]
[1688181990933,1.05857454,30423.0,30422.0,0.38170819]
[1688181992930,1.01097477,30423.0,30422.0,0.38170819]
[1688181993230,0.78207829,30423.0,30422.0,0.3910888]
[1688181993421,0.80030798,30423.0,30422.0,0.3910888]
[1688181993935,0.80030798,30423.0,30422.0,0.39137349]
[1688181994124,0.78207829,30423.0,30422.0,0.39137349]
[1688181994526,0.80030798,30423.0,30422.0,0.39137349]
[1688181995224,0.80030798,30423.0,30422.0,0.03637349]
[1688181997827,0.99650592,30423.0,30422.0,0.03637349]
[1688182000536,1.07680906,30423.0,30422.0,0.03637349]
[1688182002736,0.84791258,30423.0,30422.0,0.03637349]
[1688182007935,0.80030798,30423.0,30422.0,0.03637349]
[1688182012740,0.99644778,30423.0,30422.0,0.03637349]
[1688182014446,0.80030798,30423.0,30422.0,0.03637349]
[1688182014830,0.99644778,30423.0,30422.0,0.03637349]
[1688182015535,1.07680827,30423.0,30422.0,0.03637349]
[1688182015735,0.84791179,30423.0,30422.0,0.03637349]
[1688182016239,1.17751634,30423.0,30422.0,0.03637349]
[1688182016635,1.17751634,30423.0,30422.0,0.03273615]
[1688182022941,0.84791179,30423.0,30422.0,0.03273615]
[1688182024051,0.84791179,30423.0,30422.0,0.03245146]
[1688182026044,0.84791179,30423.0,30422.0,0.03273628]
[1688182026347,0.80030798,30423.0,30422.0,0.03273628]
[1688182026953,0.99646225,30423.0,30422.0,0.03273628]
[1688182027152,0.80030798,30423.0,30422.0,0.03273628]
[1688182027457,0.99645938,30423.0,30422.0,0.03273628]
[1688182029554,0.80030798,30423.0,30422.0,0.03273628]
[1688182031255,0.82631847,30423.0,30422.0,0.03273628]
[1688182031455,0.80030798,30423.0,30422.0,0.03273628]
[1688182031754,0.84791202,30423.0,30422.0,0.03273628]
[1688182034052,0.81083288,30423.0,30422.0,0.03273628]
[1688182034958,0.82968233,30423.0,30422.0,0.03273628]
[1688182035255,0.84791202,30423.0,30422.0,0.03273628]
[1688182037758,0.82968233,30423.0,30422.0,0.03273628]
[1688182037960,0.89768813,30423.0,30422.0,0.03273628]
[1688182038850,0.91591782,30423.0,30422.0,0.03273628]
[1688182040658,1.14053508,30423.0,30422.0,0.05246628]
[1688182041655,1.15938453,30423.0,30422.0,0.05246628]
[1688182044956,1.15938453,30423.0,30422.0,0.40436628]
[1688182045567,0.69788578,30423.0,30422.0,0.40436628]
[1688182046362,0.67903633,30423.0,30422.0,0.40436628]
[1688182048059,0.69788578,30423.0,30422.0,0.40436628]
[1688182048864,0.67903633,30423.0,30422.0,0.40436628]
[1688182049057,0.45003288,30423.0,30422.0,0.40436628]
[1688182049452,0.45003288,30423.0,30422.0,0.42321573]
[1688182053573,0.45003288,30423.0,30422.0,0.40436628]
[1688182053753,0.46888233,30423.0,30422.0,0.40436628]
[1688182054970,0.46888233,30423.0,30422.0,0.40706628]
[1688182055173,0.45003288,30423.0,30422.0,0.42591573]
[1688182055356,0.24661073,30423.0,30422.0,0.42521573]
[1688182056872,0.22688173,30423.0,30422.0,0.42521573]
[1688182057868,0.03059984,30423.0,30422.0,0.42521573]
[1688182059581,0.03059984,30423.0,30422.0,0.78601573]
[1688182060585,0.30720296,30423.0,30422.0,0.78601573]
[1688182061974,0.07819951,30423.0,30422.0,0.78601573]
[1688182065470,0.22681379,30423.0,30422.0,0.78601573]
[1688182067980,0.019728,30425.0,30422.0,0.78601573]
[1688182068184,0.0305989,30424.0,30423.0,0.01884945]
[1688182068379,0.0305989,30424.0,30423.0,0.38501661]
[1688182068775,0.0305989,30424.0,30423.0,0.40386606]
[1688182069086,0.0305989,30424.0,30423.0,0.40416581]
[1688182070086,0.0305989,30424.0,30423.0,0.76496581]
[1688182070990,0.0503269,30424.0,30423.0,0.76496581]
[1688182075488,0.21594195,30424.0,30423.0,0.76496581]
[1688182075681,0.24654085,30424.0,30423.0,0.76496581]
[1688182076682,0.24654085,30424.0,30423.0,0.40416581]
[1688182082992,0.019728,30424.0,30423.0,0.40416581]
[1688182084900,0.301,30425.0,30423.0,0.40416581]
[1688182085194,0.301,30425.0,30424.0,0.355]
[1688182085395,0.3315989,30425.0,30424.0,0.39357845]
[1688182085698,0.3513269,30425.0,30424.0,0.40382517]
[1688182086091,0.3513269,30425.0,30424.0,0.40412449]
[1688182090497,0.39892586,30425.0,30424.0,0.40412449]
[1688182090693,0.62792931,30425.0,30424.0,0.40412449]
[1688182094305,0.39892584,30425.0,30424.0,0.40412449]
[1688182094499,0.62792929,30425.0,30424.0,0.40412449]
[1688182097502,0.30720129,30425.0,30424.0,0.40412449]
[1688182097696,0.07819784,30425.0,30424.0,0.75912449]
[1688182098110,0.0305989,30425.0,30424.0,0.75912449]
[1688182099799,0.0503269,30425.0,30424.0,0.75912449]
[1688182101097,0.0503269,30425.0,30424.0,0.38439549]
[1688182101409,0.24659643,30425.0,30424.0,0.38439549]
[1688182101702,0.54879643,30425.0,30424.0,0.38439549]
[1688182101901,0.54879643,30425.0,30424.0,0.40412449]
[1688182102105,0.3525269,30425.0,30424.0,0.40412449]
[1688182102502,0.54879643,30425.0,30424.0,0.40412449]
[1688182109104,0.54879643,30425.0,30424.0,0.38527504]
[1688182110404,0.54879643,30425.0,30424.0,0.40412449]
[1688182113125,0.62912927,30425.0,30424.0,0.40412449]
[1688182114510,0.62912927,30425.0,30424.0,0.38527504]
[1688182118814,0.64797872,30425.0,30424.0,0.38527504]
[1688182119019,0.43720496,30425.0,30424.0,0.38527504]
[1688182119604,0.62922724,30425.0,30424.0,0.38527504]
[1688182120625,0.54889736,30425.0,30424.0,0.40412449]
[1688182125022,0.54889736,30425.0,30424.0,0.75912449]
[1688182126528,0.56774681,30425.0,30424.0,0.74027504]
[1688182127324,0.5859765,30425.0,30424.0,0.74027504]
[1688182127911,0.56774681,30425.0,30424.0,0.74027504]
[1688182128127,0.4189758,30425.0,30424.0,0.74027504]
[1688182129130,0.40012635,30425.0,30424.0,0.75912449]
[1688182133717,0.62922563,30425.0,30424.0,0.75912449]
[1688182134318,0.40012635,30425.0,30424.0,0.75912449]
[1688182135028,0.40012635,30425.0,30424.0,0.40412449]
[1688182135528,0.38960604,30425.0,30424.0,0.38527504]
[1688182137028,0.3525269,30425.0,30424.0,0.38527504]
[1688182138533,0.37137635,30425.0,30424.0,0.38527504]
[1688182138922,0.38960604,30425.0,30424.0,0.38527504]
[1688182139735,0.73217635,30425.0,30424.0,0.38527504]
[1688182140238,0.77977666,30425.0,30424.0,0.38527504]
[1688182140924,0.79800635,30425.0,30424.0,0.38527504]
[1688182141537,0.77977666,30425.0,30424.0,0.38527504]
[1688182142439,0.79800635,30425.0,30424.0,0.38527504]
[1688182143552,0.76092721,30425.0,30424.0,0.40412449]
[1688182144048,0.7133269,30425.0,30424.0,0.40412449]
[1688182144553,0.90968201,30425.0,30424.0,0.40412449]
[1688182146947,0.60748201,30425.0,30424.0,0.40412449]
[1688182148950,0.24668201,30425.0,30424.0,0.40412449]
[1688182150546,0.32703125,30425.0,30424.0,0.40412449]
[1688182154458,0.32703125,30425.0,30424.0,0.38527504]
[1688182154651,0.09792521,30425.0,30424.0,0.38527504]
[1688182155247,0.11677466,30425.0,30424.0,0.38527504]
[1688182156553,0.13500435,30425.0,30424.0,0.38527504]
[1688182156754,0.11677466,30425.0,30424.0,0.38527504]
[1688182158158,0.06917635,30425.0,30424.0,0.38527504]
[1688182158852,0.07567635,30425.0,30422.0,0.02307085]
[1688182159056,0.9447208,30423.0,30420.0,0.3525]
[1688182159353,0.45872859,30422.0,30419.0,0.019732]
[1688182159655,0.28379502,30421.0,30420.0,0.3519]
[1688182159850,0.63879502,30421.0,30420.0,0.3519]
[1688182160046,0.44240904,30421.0,30420.0,0.3519]
[1688182160455,0.63879502,30421.0,30420.0,0.3519]
[1688182161858,0.44240904,30421.0,30420.0,0.3519]
[1688182162151,0.75540904,30421.0,30420.0,0.3519]
[1688182165049,0.75200904,30421.0,30420.0,0.3519]
[1688182165555,0.79961572,30421.0,30420.0,0.3519]
[1688182165861,0.75200904,30421.0,30420.0,0.3519]
[1688182166559,0.79961576,30421.0,30420.0,0.3519]
[1688182166762,0.79961576,30421.0,30420.0,0.3600527]
[1688182166962,0.75200904,30421.0,30420.0,0.3600527]
[1688182167265,0.9481024,30421.0,30420.0,0.36033685]
[1688182168764,0.9487024,30421.0,30420.0,0.00843685]
[1688182170560,0.93047271,30421.0,30420.0,0.00843685]
[1688182171265,0.9487024,30421.0,30420.0,0.00843685]
[1688182171866,1.3095024,30421.0,30420.0,0.00843685]
[1688182173171,1.08281014,30421.0,30420.0,0.00843685]
[1688182174975,1.08561014,30421.0,30420.0,0.36313685]
[1688182175271,1.06738045,30421.0,30420.0,0.36313685]
[1688182176373,0.380531,30421.0,30420.0,0.4017163]
[1688182178066,0.54389348,30421.0,30420.0,0.4017163]
[1688182179270,0.54389348,30421.0,30420.0,0.40183497]
[1688182179578,0.54389348,30421.0,30420.0,0.40189497]
[1688182180478,0.41113304,30421.0,30420.0,0.40189497]
[1688182182478,0.05033304,30421.0,30420.0,0.40189497]
[1688182184579,0.019731,30421.0,30420.0,0.40189497]
[1688182189581,0.18313383,30421.0,30420.0,0.40189497]
[1688182189981,0.019731,30421.0,30420.0,0.40189497]
[1688182190772,0.18313383,30421.0,30420.0,0.40189497]
[1688182193583,0.16340283,30422.0,30420.0,0.40189497]
[1688182193782,0.16340283,30422.0,30421.0,0.73394945]
[1688182193978,0.16340283,30422.0,30421.0,0.75367845]
[1688182194179,0.16340283,30422.0,30421.0,0.76276989]
[1688182195785,0.03059955,30422.0,30421.0,0.76276989]
[1688182199077,0.19609336,30424.0,30421.0,0.76276989]
[1688182199281,0.22669254,30424.0,30422.0,0.01884945]
[1688182199481,0.22669254,30424.0,30423.0,0.019728]
[1688182199678,0.22669254,30424.0,30423.0,0.02794124]
[1688182199880,0.22669254,30424.0,30423.0,0.04679069]
[1688182200083,0.22669254,30424.0,30423.0,0.04719398]
[1688182201286,0.19609336,30424.0,30423.0,0.04719398]
[1688182201484,0.22669254,30424.0,30423.0,0.04719398]
[1688182202289,0.19617457,30426.0,30423.0,0.75079398]
[1688182202491,0.19617457,30426.0,30425.0,0.7133]
[1688182202677,0.19617457,30427.0,30425.0,0.78742251]
[1688182202985,0.19617457,30427.0,30426.0,0.39047545]
[1688182203186,0.00049302,30428.0,30426.0,0.39047545]
[1688182203389,0.00049302,30428.0,30427.0,0.374325]
[1688182203580,0.00049302,30428.0,30427.0,0.39317445]
[1688182204089,0.00049302,30428.0,30427.0,0.72537445]
[1688182204687,0.02021802,30428.0,30427.0,0.72537445]
[1688182205783,0.00049302,30428.0,30427.0,0.72537445]
[1688182206390,0.01341902,30429.0,30427.0,0.706525]
[1688182206592,0.065747,30430.0,30428.0,0.73154945]
[1688182206796,0.065747,30430.0,30429.0,0.374724]
[1688182207188,0.19617457,30432.0,30429.0,0.39357345]
[1688182207495,0.56570916,30433.0,30431.0,0.3519]
[1688182207496,0.21589657,30433.0,30431.0,0.3519]
[1688182207687,0.21589657,30433.0,30432.0,0.07411751]
[1688182208093,0.019722,30433.0,30432.0,0.07411751]
[1688182208284,0.019722,30433.0,30432.0,0.03857145]
[1688182210799,0.21589657,30433.0,30432.0,0.03857145]
[1688182211293,0.019722,30433.0,30432.0,0.03857145]
[1688182211490,0.5670315,30434.0,30432.0,0.03857145]
[1688182211793,0.00049293,30434.0,30433.0,0.74817045]
[1688182211999,0.16364977,30434.0,30433.0,0.74817045]
[1688182213102,0.17123235,30434.0,30433.0,0.74817045]
[1688182214098,0.00807551,30434.0,30433.0,0.74817045]
[1688182214891,0.00807551,30434.0,30433.0,0.79817045]
[1688182215193,0.13855305,30434.0,30433.0,0.79817045]
[1688182216093,0.00807551,30434.0,30433.0,0.79817045]
[1688182217085,0.00125051,30434.0,30433.0,0.79817045]
[1688182217494,0.00601101,30434.0,30433.0,0.79817045]
[1688182217895,0.10379022,30434.0,30433.0,0.79817045]
[1688182218084,0.00601101,30434.0,30433.0,0.79817045]
[1688182219007,0.00601101,30434.0,30433.0,1.51977045]
[1688182220202,0.18888885,30434.0,30433.0,1.15897045]
[1688182222101,0.18888885,30434.0,30433.0,1.15944512]
[1688182222304,0.02573201,30434.0,30433.0,1.15944512]
[1688182222895,0.32603201,30434.0,30433.0,1.15944512]
[1688182225615,0.42378201,30434.0,30433.0,1.15944512]
[1688182225911,0.42378107,30434.0,30433.0,1.15944512]
[1688182226098,0.32603201,30434.0,30433.0,1.15944512]
[1688182228408,0.32603201,30434.0,30433.0,0.42479567]
[1688182228409,0.49344449,30434.0,30433.0,0.42479567]
[1688182228711,0.49344449,30434.0,30433.0,0.35507467]
[1688182228712,0.36311115,30434.0,30433.0,0.35507467]
[1688182229212,0.52626799,30434.0,30433.0,0.35507467]
[1688182232707,0.88706799,30434.0,30433.0,0.35507467]
[1688182233108,0.88687635,30434.0,30433.0,0.35507467]
[1688182236221,0.88696152,30434.0,30433.0,0.35507467]
[1688182236618,0.72391115,30434.0,30433.0,0.35507467]
[1688182236923,0.72391115,30434.0,30433.0,0.00047467]
[1688182236924,1.1095063,30434.0,30433.0,0.00047467]
[1688182237226,0.03707914,30433.0,30429.0,0.019723]
[1688182237409,0.13043096,30430.0,30429.0,0.019723]
[1688182237606,0.15015396,30430.0,30429.0,0.371623]
[1688182237816,0.1872331,30430.0,30429.0,0.371623]
[1688182238014,0.05680214,30430.0,30429.0,0.371623]
[1688182238210,0.05680214,30430.0,30429.0,0.3519]
[1688182238417,0.05680214,30430.0,30429.0,0.37858723]
[1688182239013,0.21984084,30430.0,30429.0,0.37858723]
[1688182240517,0.54924084,30430.0,30429.0,0.37858723]
[1688182240711,0.41679844,30430.0,30429.0,0.37858723]
[1688182242526,0.42171823,30430.0,30429.0,0.37858723]
[1688182243818,0.6178928,30430.0,30429.0,0.37858723]
[1688182245015,0.9699928,30430.0,30429.0,0.38128723]
[1688182245718,0.82141414,30430.0,30429.0,0.38128723]
[1688182246027,1.0505013,30430.0,30429.0,0.34315851]
[1688182248327,0.96971113,30430.0,30429.0,0.34315851]
[1688182255735,0.82141628,30430.0,30429.0,0.34315851]
[1688182256036,1.0498421,30430.0,30429.0,0.34315851]
[1688182256622,1.03161241,30430.0,30429.0,0.34315851]
[1688182256825,1.0498421,30430.0,30429.0,0.34315851]
[1688182257923,1.0498421,30430.0,30429.0,0.30884266]
[1688182260128,1.4106421,30430.0,30429.0,0.30884266]
[1688182263135,1.33047741,30430.0,30429.0,0.30884266]
[1688182265032,0.97837741,30430.0,30429.0,0.3519]
[1688182265639,0.78251823,30430.0,30429.0,0.3519]
[1688182266138,0.83011638,30430.0,30429.0,0.3519]
[1688182269144,1.18491638,30430.0,30429.0,0.3519]
[1688182270044,1.0525422,30430.0,30429.0,0.3519]
[1688182270246,1.4133422,30430.0,30429.0,0.3519]
[1688182270744,1.51461048,30430.0,30429.0,0.31408928]
[1688182271937,1.25291408,30430.0,30429.0,0.31408928]
[1688182272947,0.89211408,30430.0,30429.0,0.31408928]
[1688182273246,1.25291408,30430.0,30429.0,0.31408928]
[1688182275049,1.25311408,30430.0,30429.0,0.3546]
[1688182275450,1.5482717,30430.0,30429.0,0.3546]
[1688182275752,1.5482717,30430.0,30424.0,0.3022]
[1688182275753,1.21603494,30430.0,30425.0,0.3539]
[1688182276049,0.380526,30426.0,30425.0,0.3539]
[1688182276248,0.45872045,30426.0,30425.0,0.3539]
[1688182276450,0.49579959,30426.0,30425.0,0.3539]
[1688182276858,0.89270319,30426.0,30425.0,0.3539]
[1688182277058,1.08615293,30426.0,30425.0,0.3539]
[1688182277661,0.82469959,30426.0,30425.0,0.3539]
[1688182278055,1.08615293,30426.0,30425.0,0.3539]
[1688182278256,0.82469959,30426.0,30425.0,0.3539]
[1688182278857,0.82469959,30426.0,30425.0,0.35465748]
[1688182279052,1.05357515,30426.0,30425.0,0.35465748]
[1688182279654,1.05357515,30426.0,30425.0,0.36115595]
[1688182280965,1.05357515,30426.0,30425.0,0.36096658]
[1688182281867,1.05357515,30426.0,30425.0,0.00706658]
[1688182282955,1.05357515,30426.0,30425.0,0.00725595]
[1688182284261,0.82469959,30426.0,30425.0,0.00725595]
[1688182285654,0.89270512,30426.0,30425.0,0.00653036]
[1688182286963,1.25350512,30426.0,30425.0,0.00653036]
[1688182287555,1.57409945,30426.0,30425.0,0.00653036]
[1688182289352,1.92569945,30426.0,30425.0,0.00653036]
[1688182290464,1.20409945,30426.0,30425.0,0.00653036]
[1688182290660,1.92569945,30426.0,30425.0,0.00653036]
[1688182291771,0.355,30425.0,30422.0,0.30539301]
[1688182291969,0.97732183,30423.0,30422.0,0.30539301]
[1688182292273,1.07524428,30423.0,30422.0,0.30539301]
[1688182292475,1.13842245,30423.0,30422.0,0.30539301]
[1688182292673,0.85080159,30423.0,30422.0,0.30539301]
[1688182294770,0.80320344,30423.0,30422.0,0.30539301]
[1688182298478,0.85080886,30423.0,30422.0,0.30539301]
[1688182298874,0.85080875,30423.0,30422.0,0.30539301]
[1688182299376,0.85080875,30423.0,30422.0,0.31031238]
[1688182299773,0.80320344,30423.0,30422.0,0.31031238]
[1688182300866,0.99933151,30423.0,30422.0,0.31031238]
[1688182303178,0.96225237,30423.0,30422.0,0.31031238]
[1688182304080,0.99933151,30423.0,30422.0,0.31031238]
[1688182308072,1.27576681,30423.0,30422.0,0.31031238]
[1688182308273,1.07963874,30423.0,30422.0,0.31031238]
[1688182309175,0.71883874,30423.0,30422.0,0.31031238]
[1688182310278,0.3267596,30423.0,30422.0,0.66491238]
[1688182310884,0.3267596,30423.0,30422.0,0.68376183]
[1688182313189,0.13500701,30423.0,30422.0,0.66491238]
[1688182313375,0.11677732,30423.0,30422.0,0.66491238]
[1688182313888,0.13500701,30423.0,30422.0,0.66491238]
[1688182314273,0.11677732,30423.0,30422.0,0.66491238]
[1688182314880,0.09792787,30423.0,30422.0,0.66491238]
[1688182315075,0.45002787,30423.0,30422.0,0.31031238]
[1688182315787,0.59893593,30423.0,30422.0,0.31031238]
[1688182316488,0.24683593,30423.0,30422.0,0.68206183]
[1688182316789,0.0305963,30423.0,30422.0,1.06259083]
[1688182317384,0.374727,30424.0,30422.0,1.06259083]
[1688182317573,0.03059932,30423.0,30422.0,0.69084138]
[1688182317774,0.03059932,30423.0,30422.0,1.04334138]
[1688182318189,0.03059932,30423.0,30422.0,1.06219083]
[1688182318392,0.374727,30424.0,30422.0,1.06219083]
[1688182318684,0.374727,30424.0,30423.0,0.371628]
[1688182318889,0.374727,30424.0,30423.0,0.39541251]
[1688182318890,0.40532618,30424.0,30423.0,0.39541251]
[1688182321184,0.38559918,30424.0,30423.0,0.39541251]
[1688182321390,0.13840816,30424.0,30423.0,0.39541251]
[1688182321591,0.03059918,30424.0,30423.0,0.04351251]
[1688182321993,0.19651163,30426.0,30423.0,0.40431251]
[1688182322196,0.22710904,30426.0,30425.0,0.3539]
[1688182322387,0.22710904,30426.0,30425.0,0.39247645]
[1688182322589,0.22710904,30426.0,30425.0,0.39740277]
[1688182323995,0.69330969,30426.0,30425.0,0.02465332]
[1688182324298,0.52616694,30426.0,30425.0,0.02465332]
[1688182324496,0.6751066,30426.0,30425.0,0.02465332]
[1688182324696,0.6751066,30426.0,30425.0,0.33445332]
[1688182325298,0.62071109,30426.0,30425.0,0.33445332]
[1688182326393,0.62071109,30426.0,30425.0,0.35330277]
[1688182326592,0.60186164,30426.0,30425.0,0.35330277]
[1688182326998,0.05032341,30426.0,30425.0,0.70830277]
[1688182330595,0.09791934,30426.0,30425.0,1.06910277]
[1688182332205,0.36426204,30426.0,30425.0,1.05025332]
[1688182332398,0.34603235,30426.0,30425.0,1.05025332]
[1688182335002,0.69823235,30426.0,30425.0,1.04915332]
[1688182335804,0.6793829,30426.0,30425.0,1.04915332]
[1688182336103,0.6793829,30426.0,30425.0,1.06800277]
[1688182338099,0.6793829,30426.0,30425.0,1.06660277]
[1688182338405,0.40252341,30426.0,30425.0,1.06660277]
[1688182338596,0.40252341,30426.0,30425.0,1.04775332]
[1688182338797,0.42137286,30426.0,30425.0,1.04775332]
[1688182339708,0.72152341,30426.0,30425.0,1.06660277]
[1688182340407,0.72152341,30426.0,30425.0,1.04775332]
[1688182341198,0.72152341,30426.0,30425.0,1.02802632]
[1688182341907,0.72152341,30426.0,30425.0,1.04687577]
[1688182342611,0.72152341,30426.0,30425.0,0.35742632]
[1688182342801,1.2788589,30426.0,30425.0,0.00492632]
[1688182343107,1.2788589,30426.0,30422.0,1.01459301]
[1688182343108,1.29770835,30426.0,30422.0,1.01459301]
[1688182343310,0.355,30423.0,30422.0,1.01459301]
[1688182343511,0.374728,30423.0,30422.0,1.0406844]
[1688182344606,0.374728,30423.0,30422.0,0.6798844]
[1688182344796,0.374728,30423.0,30422.0,0.6996134]
[1688182344995,0.374728,30423.0,30422.0,0.72046285]
[1688182344996,0.019728,30423.0,30422.0,0.72046285]
[1688182345603,0.05032734,30423.0,30422.0,0.72046285]
[1688182346220,0.03059934,30423.0,30422.0,0.72046285]
[1688182347832,0.03059934,30423.0,30422.0,1.08126285]
[1688182348015,0.03059934,30423.0,30422.0,1.08612839]
[1688182353327,0.16381117,30423.0,30422.0,1.08612839]
[1688182360626,0.03059792,30423.0,30422.0,1.08612839]
[1688182362133,0.04944737,30423.0,30422.0,1.06727894]
[1688182362324,0.06917537,30423.0,30422.0,1.06727894]
[1688182362835,0.26571086,30423.0,30422.0,1.06727894]
[1688182363830,0.24686141,30423.0,30422.0,1.06727894]
[1688182364734,0.24686141,30423.0,30422.0,1.08612839]
[1688182366833,0.24686141,30423.0,30422.0,0.72532839]
[1688182367035,0.24686141,30423.0,30422.0,1.08612839]
[1688182368338,0.05032592,30423.0,30422.0,1.08612839]
[1688182370439,0.0503268,30423.0,30422.0,1.08612839]
[1688182371738,0.0503268,30423.0,30422.0,1.06727894]
[1688182372325,0.3506268,30423.0,30422.0,1.06727894]
[1688182372842,0.3506268,30423.0,30422.0,1.08612839]
[1688182373443,0.320028,30423.0,30422.0,1.08612839]
[1688182374243,0.35062679,30423.0,30422.0,1.08612839]
[1688182375144,0.35062679,30423.0,30422.0,1.06727894]
[1688182375733,0.54716228,30423.0,30422.0,1.06727894]
[1688182378241,0.56601173,30423.0,30422.0,1.06727894]
[1688182378628,0.54716228,30423.0,30422.0,1.06727894]
[1688182378836,0.54716228,30423.0,30422.0,0.70647894]
[1688182379031,0.54716228,30423.0,30422.0,1.06727894]
[1688182381442,0.54716228,30423.0,30422.0,1.08612839]
[1688182383145,0.35062679,30423.0,30422.0,1.08612839]
[1688182387055,0.33089879,30423.0,30422.0,1.08612839]
[1688182389742,0.34974824,30423.0,30422.0,1.06727894]
[1688182391450,0.33089879,30423.0,30422.0,1.06727894]
[1688182391657,0.33089879,30423.0,30422.0,1.08612839]
[1688182394473,0.03059879,30423.0,30422.0,1.08612839]
[1688182394664,0.19653549,30425.0,30422.0,1.08612839]
[1688182394863,0.22713331,30425.0,30424.0,0.355]
[1688182395065,0.22713331,30425.0,30424.0,0.729727]
[1688182395264,0.22713331,30425.0,30424.0,0.73447966]
[1688182395561,0.22713331,30425.0,30424.0,0.75332911]
[1688182396867,0.03059782,30425.0,30424.0,0.75332911]
[1688182398261,0.07819347,30425.0,30424.0,0.75332911]
[1688182398868,0.11676992,30425.0,30424.0,0.02447966]
[1688182399161,0.34603348,30425.0,30424.0,0.35975266]
[1688182399467,0.36426317,30425.0,30424.0,0.35975266]
[1688182399764,0.41865868,30425.0,30424.0,0.35975266]
[1688182400165,0.36426317,30425.0,30424.0,0.35975266]
[1688182400365,0.41865868,30425.0,30424.0,0.35975266]
[1688182400659,0.34603348,30425.0,30424.0,0.35975266]
[1688182400865,0.36426317,30425.0,30424.0,0.35975266]
[1688182401867,0.34603348,30425.0,30424.0,0.35975266]
[1688182402067,0.32718403,30425.0,30424.0,0.35975266]
[1688182402267,0.34603348,30425.0,30424.0,0.35975266]
[1688182403668,0.34603348,30425.0,30424.0,0.72055266]
[1688182404068,0.34603348,30425.0,30424.0,0.74027966]
[1688182405772,0.26602566,30425.0,30424.0,0.74027966]
[1688182407965,0.28425535,30425.0,30424.0,0.74027966]
[1688182408570,0.26602566,30425.0,30424.0,0.74027966]
[1688182408963,0.24717621,30425.0,30424.0,0.74027966]
[1688182410069,0.24717621,30425.0,30424.0,0.75912911]
[1688182411874,0.24717621,30425.0,30424.0,0.39832911]
[1688182412068,0.24717621,30425.0,30424.0,0.75912911]
[1688182412966,0.24717621,30425.0,30424.0,0.39832911]
[1688182413167,0.24717621,30425.0,30424.0,0.75912911]
[1688182413467,0.32718534,30425.0,30424.0,0.75912911]
[1688182414471,0.32718534,30425.0,30424.0,0.39832911]
[1688182414868,0.34541503,30425.0,30424.0,0.75912911]
[1688182415168,0.32718534,30425.0,30424.0,0.37947966]
[1688182415566,0.36426448,30425.0,30424.0,0.37947966]